bitfinex/quotes_ETHUSD_20260106
["timestamp","ask_amount","ask_price","bid_price","bid_amount"]
[1767734964014,3.02352111,3278.1,3277.7,1.27888627]
[1767734964217,1.59267723,3278.0,3277.3,0.09363588]
[1767734964410,1.59267723,3278.0,3277.4,0.09363588]
[1767734964411,1.53562108,3278.0,3277.4,0.09363588]
[1767734965439,1.59267723,3278.3,3277.4,0.15436268]
[1767734965642,7.69341509,3278.3,3277.6,0.09363588]
[1767734965843,8.5272566,3278.3,3277.6,0.09363588]
[1767734966143,1.59267723,3278.2,3277.6,0.09363588]
[1767734966440,1.59267723,3278.2,3277.4,0.15436268]
[1767734966812,1.59267723,3278.2,3277.4,0.09363588]
[1767734967722,3.05054757,3278.1,3277.4,0.09363588]
[1767734967949,7.69377237,3278.1,3277.4,0.09363588]
[1767734969643,7.69377237,3278.1,3277.4,0.16414323]
[1767734969842,4.64122284,3278.1,3277.4,0.16414323]
[1767734970154,2.42853777,3278.1,3277.6,0.09363588]
[1767734970362,2.42153091,3278.1,3277.6,0.09363588]
[1767734970543,2.89755367,3278.2,3277.4,0.1665634]
[1767734970732,2.89755367,3278.2,3277.6,0.09363588]
[1767734971657,5.94800818,3278.2,3277.6,0.09363588]
[1767734972727,5.94800818,3278.2,3277.9,0.001]
[1767734973664,2.89755367,3278.2,3277.9,0.001]
[1767734974030,5.94800818,3278.2,3277.9,0.001]
[1767734975451,1.60858521,3278.1,3277.9,0.001]
[1767734975659,1.60057737,3278.1,3277.9,0.001]
[1767734975849,5.94800818,3278.2,3277.9,0.001]
[1767734975850,3.04663671,3278.0,3277.9,0.001]
[1767734976066,4.65221898,3278.0,3277.9,0.001]
[1767734976265,4.64821506,3278.0,3277.9,0.001]
[1767734976459,4.64020722,3278.0,3277.9,0.001]
[1767734976660,4.63219938,3278.0,3277.9,0.001]
[1767734976830,4.62419154,3278.0,3277.9,0.001]
[1767734977169,4.59215998,3278.0,3277.9,0.001]
[1767734978054,1.61359011,3277.9,3277.4,0.07198624]
[1767734979203,2.97856987,3278.0,3277.4,0.07198624]
[1767734979871,2.97856987,3278.0,3277.6,0.09363588]
[1767734982982,2.97856987,3278.0,3277.4,0.07198624]
[1767734983782,6.0292105,3278.0,3277.4,0.07198624]
[1767734984085,2.97856987,3278.0,3277.5,0.12059114]
[1767734984248,2.97856987,3278.0,3277.6,0.09363588]
[1767734984656,6.0292105,3278.0,3277.6,0.09363588]
[1767734984874,7.64280061,3278.0,3277.6,0.09363588]
[1767734985274,4.59215998,3278.0,3277.9,0.001]
[1767734988106,1.61359011,3277.9,3277.4,0.07198624]
[1767734988596,4.59215998,3278.0,3277.4,0.20341521]
[1767734988987,4.59215998,3278.0,3277.4,0.07198624]
[1767734989285,1.61359011,3277.9,3277.4,0.07198624]
[1767734990098,1.61359011,3277.8,3277.4,0.07198624]
[1767734990398,1.33031211,3277.8,3277.1,0.37995291]
[1767734990566,1.33031211,3277.8,3277.2,0.41878608]
[1767734990765,1.61359011,3277.8,3277.4,0.09363588]
[1767734991376,3.05079949,3277.9,3277.4,0.51562694]
[1767734991589,1.61359011,3277.8,3277.4,0.09363588]
[1767734992388,1.61258913,3277.8,3277.4,0.09363588]
[1767734993401,1.61258913,3277.7,3277.4,0.09363588]
[1767734993598,4.66435232,3277.9,3277.4,0.09363588]
[1767734993792,3.05076221,3277.9,3277.4,0.09363588]
[1767734995289,6.10132674,3278.0,3277.4,0.09363588]
[1767734995603,7.71491685,3278.0,3277.4,0.09363588]
[1767734997097,1.61359011,3277.9,3277.1,0.5291561]
[1767734997307,4.6634159,3277.8,3277.3,0.09363588]
[1767734997608,4.6634159,3277.8,3277.1,0.5291561]
[1767734997771,4.6634159,3277.8,3277.3,0.09363588]
[1767734998078,4.6634159,3277.8,3276.9,3.14629736]
[1767734998079,1.7019829,3277.6,3277.0,0.09363588]
[1767734998271,1.7019829,3277.8,3277.2,0.09363588]
[1767734998474,1.7019829,3278.1,3277.6,0.09363588]
[1767734999089,4.75199084,3278.7,3278.0,0.09363588]
[1767734999288,0.002,3278.8,3278.2,1.76180601]
[1767734999492,0.002,3278.9,3278.5,1.66817013]
[1767735000313,3.05174065,3279.0,3278.6,1.76180601]
[1767735000314,0.002,3279.0,3278.6,1.76180601]
[1767735000608,3.04961141,3279.2,3278.8,0.09363588]
[1767735000792,3.0046852,3279.2,3279.0,0.09363588]
[1767735000997,1.7019829,3280.1,3279.0,0.09363588]
[1767735000998,3.04859459,3280.2,3279.2,1.76180601]
[1767735001200,3.04859459,3280.2,3279.4,1.76180601]
[1767735001392,6.09718918,3280.2,3279.4,1.76180601]
[1767735001712,3.04859459,3280.2,3279.4,1.76180601]
[1767735001926,3.84850883,3280.3,3279.6,1.77521914]
[1767735001927,3.05052715,3280.3,3279.6,1.77521914]
[1767735002134,1.65805836,3280.7,3280.0,1.68158326]
[1767735002135,0.002,3280.7,3280.0,1.68158326]
[1767735002408,6.89333096,3281.2,3280.2,1.68158326]
[1767735002591,6.89333096,3281.2,3280.3,1.77521914]
[1767735002796,0.6893331,3281.1,3280.3,1.77521914]
[1767735003102,0.6893331,3281.1,3280.5,1.77521914]
[1767735003305,3.04766548,3281.2,3280.5,1.77521914]
[1767735003506,6.09495946,3281.4,3280.5,1.77521914]
[1767735003911,1.65605836,3281.1,3280.1,0.09363588]
[1767735004268,1.65605836,3281.3,3280.2,0.09363588]
[1767735004379,1.65605836,3281.2,3279.8,0.09363588]
[1767735004579,1.65605836,3280.9,3280.0,0.09363588]
[1767735005679,1.65605836,3280.7,3279.9,0.09363588]
[1767735005983,1.65605836,3280.7,3279.6,0.09363588]
[1767735005984,3.04803706,3280.8,3280.2,0.09363588]
[1767735006495,0.798,3281.1,3280.2,0.09363588]
[1767735006496,3.04776316,3281.1,3280.2,0.09363588]
[1767735006697,3.04769261,3281.2,3280.6,0.09363588]
[1767735007286,3.04738686,3281.5,3280.8,0.09363588]
[1767735008127,3.04738686,3281.5,3281.0,0.09363588]
[1767735008826,7.75083208,3281.5,3280.6,0.09363588]
[1767735009026,7.75083208,3281.5,3280.8,0.09363588]
[1767735009236,7.75083208,3281.5,3280.6,0.09363588]
[1767735009237,1.65605836,3281.3,3280.2,0.09363588]
[1767735009434,1.65605836,3281.3,3280.0,0.09363588]
[1767735009730,13.26935862,3281.5,3280.0,0.09363588]
[1767735009731,6.09570252,3281.0,3280.0,0.09363588]
[1767735010031,1.65605836,3280.8,3279.3,3.14305154]
[1767735010327,1.65605836,3280.6,3279.3,0.86963588]
[1767735010540,1.65605836,3280.6,3279.5,0.09363588]
[1767735010739,1.6540564,3280.6,3279.4,0.03049338]
[1767735010923,1.6540564,3280.6,3279.3,3.91897609]
[1767735010924,1.6540564,3280.6,3279.5,0.48858283]
[1767735011105,1.6540564,3280.6,3279.7,0.09363588]
[1767735011300,3.04777701,3281.1,3280.1,0.09363588]
[1767735011505,0.002,3281.2,3280.5,0.09363588]
[1767735011780,3.04946394,3281.5,3280.7,0.09363588]
[1767735011901,0.002,3281.5,3280.7,0.09363588]
[1767735012111,1.65805836,3281.5,3280.7,0.09363588]
[1767735012332,1.65605836,3281.4,3280.5,0.09363588]
[1767735012927,1.65605836,3281.4,3280.3,0.09363588]
[1767735014042,2.51312897,3281.5,3280.5,0.09363588]
[1767735014259,2.45605836,3281.5,3280.7,0.09363588]
[1767735014400,5.5034642,3281.5,3280.7,0.09363588]
[1767735014604,1.6540564,3281.4,3280.7,0.09363588]
[1767735014805,1.65605836,3281.2,3280.2,0.776]
[1767735015202,1.65605836,3281.2,3279.1,0.09363588]
[1767735015414,1.65605836,3281.2,3279.5,3.91882193]
[1767735015631,1.65605836,3281.2,3279.6,0.09363588]
[1767735015847,1.65605836,3281.0,3279.6,0.09363588]
[1767735016051,1.65605836,3280.8,3279.6,0.09363588]
[1767735016778,1.65605836,3280.8,3279.5,0.03049245]
[1767735016779,1.65605836,3280.8,3279.3,0.90013019]
[1767735016930,1.65605836,3280.8,3279.3,3.17354446]
[1767735017257,9.94183248,3280.9,3279.3,3.17354446]
[1767735017258,1.65605836,3280.6,3279.6,0.09363588]
[1767735017425,1.65605836,3280.6,3280.0,0.09363588]
[1767735017624,1.65605836,3280.6,3279.8,0.09363588]
[1767735017625,4.70353809,3281.4,3280.5,0.09363588]
[1767735017968,0.002,3281.5,3280.7,0.09363588]
[1767735018869,3.04697034,3282.0,3280.7,0.09363588]
[1767735018870,1.65605836,3282.4,3281.0,0.09363588]
[1767735019036,1.65605836,3282.6,3281.4,0.09363588]
[1767735019226,0.798,3282.5,3281.4,0.09363588]
[1767735019559,0.798,3282.5,3281.2,0.09363588]
[1767735019853,1.9014642,3282.4,3281.0,0.09363588]
[1767735020030,1.65605836,3282.2,3280.8,3.91765689]
[1767735020354,1.65605836,3282.2,3280.8,0.86963588]
[1767735020553,1.65605836,3282.2,3280.9,0.09363588]
[1767735021138,0.798,3282.1,3280.9,0.09363588]
[1767735021441,1.9014642,3282.0,3280.7,0.03048129]
[1767735021630,1.65605836,3282.0,3280.8,0.09363588]
[1767735022222,6.09403088,3281.9,3280.8,0.09363588]
[1767735022626,3.04701544,3281.9,3281.0,0.09363588]
[1767735022946,6.09403088,3281.9,3281.0,0.09363588]
[1767735023169,6.70343397,3281.9,3281.0,0.09363588]
[1767735023680,6.70343397,3281.9,3281.2,0.09363588]
[1767735024083,6.70343397,3281.9,3281.0,0.09363588]
[1767735024382,1.65605836,3281.8,3280.3,0.09363588]
[1767735024591,12.79746485,3281.9,3280.3,0.09363588]
[1767735024592,1.6540564,3280.9,3280.3,0.09363588]
[1767735024756,0.00116982,3281.0,3280.3,0.09363588]
[1767735024955,0.00116982,3281.0,3279.9,3.14250581]
[1767735025183,0.00116982,3281.0,3280.1,0.09363588]
[1767735025384,1.65722818,3281.0,3279.8,0.09363588]
[1767735025595,0.16572282,3280.9,3280.0,0.09363588]
[1767735025768,1.65722818,3281.0,3280.0,0.09363588]
[1767735025965,1.65722818,3281.0,3279.8,0.49486727]
[1767735026193,1.65722818,3281.0,3279.8,0.09363588]
[1767735026358,1.65605836,3280.8,3279.8,0.09363588]
[1767735026560,6.09588832,3280.9,3279.8,0.09363588]
[1767735026861,1.65605836,3280.8,3279.6,0.09363588]
[1767735027256,0.798,3280.7,3279.7,0.09363588]
[1767735027458,0.24540584,3280.6,3279.7,0.09363588]
[1767735028161,1.65605836,3280.8,3279.7,0.09363588]
[1767735028377,6.09625994,3280.7,3279.9,0.09363588]
[1767735028571,7.7523183,3280.7,3279.7,0.09363588]
[1767735028776,1.65605836,3280.6,3279.5,0.09363588]
[1767735028973,1.65605836,3280.6,3279.3,0.09363588]
[1767735028974,1.65605836,3280.6,3279.4,0.09363588]
[1767735029187,1.08004483,3280.5,3279.7,0.09363588]
[1767735029487,4.70511507,3281.0,3280.1,0.09363588]
[1767735029692,4.70511507,3281.0,3280.1,0.12412275]
[1767735030059,4.70511507,3281.0,3280.1,0.09363588]
[1767735030291,7.75300196,3281.0,3280.1,0.7166613]
[1767735031186,0.00116982,3281.0,3280.2,0.09363588]
[1767735031399,0.00016884,3281.0,3280.4,0.09363588]
[1767735031566,0.00016884,3281.0,3280.6,0.09363588]
[1767735032364,3.0468065,3281.3,3280.6,0.09363588]
[1767735032566,6.094588,3281.6,3280.6,0.09363588]
[1767735032871,8.11256825,3281.6,3280.6,0.09363588]
[1767735034094,3.047294,3281.6,3280.8,0.09363588]
[1767735034338,0.93091577,3281.5,3280.9,0.03047944]
[1767735034663,0.93091577,3281.4,3280.8,0.09363588]
[1767735035210,3.04739824,3281.5,3280.8,0.09363588]
[1767735035361,0.93091577,3281.4,3280.4,0.09363588]
[1767735035566,0.93091577,3281.4,3281.2,0.001]
[1767735035966,3.04739824,3281.5,3281.2,0.001]
[1767735036594,0.798,3281.6,3281.2,0.001]
[1767735036768,3.04736487,3281.6,3281.2,0.001]
[1767735036963,6.09472974,3281.6,3281.2,0.001]
[1767735038200,7.02564551,3281.6,3281.2,0.001]
[1767735038373,0.93091577,3281.5,3281.2,0.001]
[1767735038783,3.9783955,3281.4,3280.4,0.09363588]
[1767735038983,3.9783955,3281.4,3280.2,0.09363588]
[1767735038984,0.93091577,3281.2,3280.2,0.09363588]
[1767735039201,0.93091577,3281.2,3280.1,0.7166613]
[1767735039410,0.93091577,3281.0,3280.1,0.7166613]
[1767735040813,7.02680409,3280.9,3280.1,0.7166613]
[1767735042196,7.02680409,3280.9,3280.0,0.09363588]
[1767735042397,0.93091577,3280.8,3279.9,3.9]
[1767735042719,0.93091577,3280.8,3279.9,3.99363588]
[1767735042923,0.92991479,3280.6,3279.9,3.99363588]
[1767735043122,0.92991479,3280.6,3279.9,0.09363588]
[1767735043708,0.93091577,3280.5,3279.4,0.09363588]
[1767735043888,0.93091577,3280.5,3279.5,0.09363588]
[1767735044806,0.93091577,3280.5,3279.7,0.09363588]
[1767735045005,0.93091577,3280.3,3279.7,0.09363588]
[1767735045415,3.9793245,3280.4,3279.7,0.09363588]
[1767735045719,3.04740775,3280.4,3279.9,0.09363588]
[1767735046600,3.04740775,3280.4,3279.7,0.09363588]
[1767735046601,0.93091577,3280.3,3279.7,0.09363588]
[1767735047290,0.798,3280.2,3278.9,0.09363588]
[1767735047525,0.93091577,3280.1,3279.1,0.09363588]
[1767735047681,0.93091577,3280.1,3278.9,0.09363588]
[1767735047878,0.93091577,3280.1,3278.8,0.09363588]
[1767735048086,0.93091577,3280.1,3279.0,0.09363588]
[1767735048333,0.93091577,3279.9,3279.1,0.09363588]
[1767735048628,0.798,3280.1,3279.3,0.09363588]
[1767735048994,0.93091577,3280.2,3279.5,0.09363588]
[1767735049363,7.02736153,3280.6,3279.8,0.09363588]
[1767735049526,0.93091577,3280.4,3279.8,0.09363588]
[1767735049983,0.93091577,3280.4,3279.8,0.09163589]
[1767735050189,0.93091577,3281.2,3280.0,0.09363588]
[1767735050400,0.93091577,3281.2,3280.2,0.09363588]
[1767735050730,6.09551674,3281.1,3280.0,0.09363588]
[1767735050936,3.04775837,3281.1,3280.3,0.09163589]
[1767735051104,6.09551674,3281.1,3280.3,0.09163589]
[1767735051288,0.93091577,3281.2,3280.0,0.09363588]
[1767735051489,1.10380735,3281.2,3280.0,0.49445951]
[1767735052026,1.10380735,3281.2,3280.0,0.09363588]
[1767735052688,0.798,3281.1,3280.2,0.09363588]
[1767735053319,6.09570252,3281.0,3280.2,0.09363588]
[1767735053746,3.04785126,3281.0,3280.2,0.09363588]
[1767735053908,3.04785126,3281.0,3280.3,0.09363588]
[1767735054815,3.04738686,3281.5,3280.3,0.09363588]
[1767735055027,0.798,3281.4,3280.3,0.09363588]
[1767735055230,6.797329,3281.5,3280.3,0.09363588]
[1767735055542,0.798,3281.4,3280.3,0.09363588]
[1767735057242,6.0951452,3281.3,3280.2,0.09363588]
[1767735057448,7.02606097,3281.3,3280.0,0.87327152]
[1767735057742,3.0475726,3281.3,3280.4,0.09363588]
[1767735057901,3.8455726,3281.3,3280.4,0.09363588]
[1767735058602,0.798,3281.3,3280.4,0.09363588]
[1767735058818,0.9459927,3281.3,3280.4,0.09363588]
[1767735059640,0.00099902,3281.1,3280.4,0.09363588]
[1767735059830,0.00099902,3281.1,3280.4,0.42027069]
[1767735060206,0.00099902,3281.1,3280.4,0.32663481]
[1767735060535,0.00099902,3281.1,3280.2,3.14222728]
[1767735060755,6.09432998,3281.2,3280.2,0.09363588]
[1767735060932,7.04032268,3281.2,3280.2,0.09363588]
[1767735061253,7.04032268,3281.2,3280.1,0.001]
[1767735061254,0.9459927,3281.1,3280.1,0.001]
[1767735061556,3.04785126,3281.0,3280.1,0.001]
[1767735061722,3.04766548,3281.2,3280.1,1.08562298]
[1767735061921,3.0466645,3281.2,3280.2,0.81012158]
[1767735062257,3.0466645,3281.2,3280.4,0.77963564]
[1767735062460,0.002,3281.4,3280.8,0.87327152]
[1767735062762,0.91725432,3281.9,3281.0,0.09363588]
[1767735063127,0.91725432,3281.9,3281.3,0.01905964]
[1767735063558,3.04710829,3281.8,3281.3,0.01705964]
[1767735063728,3.96429746,3281.9,3281.3,0.01705964]
[1767735063929,3.04682977,3282.1,3281.3,0.01705964]
[1767735064148,0.002,3282.2,3281.3,0.01705964]
[1767735064426,0.002,3282.2,3281.3,3.06463114]
[1767735064626,0.002,3282.5,3281.4,1.17973463]
[1767735064826,0.91725432,3282.4,3281.4,0.30646311]
[1767735065031,6.09493314,3282.5,3281.3,6.11217618]
[1767735065032,3.04846657,3282.5,3281.3,6.11217618]
[1767735065261,3.04846657,3282.5,3281.3,6.89181182]
[1767735065563,0.002,3282.5,3281.4,0.87327152]
[1767735065868,0.002,3282.8,3281.5,3.04738686]
[1767735066037,0.91925432,3282.8,3281.5,0.69854477]
[1767735066438,0.91925432,3282.8,3281.3,0.01705964]
[1767735066638,0.91925432,3282.8,3280.9,0.09363588]
[1767735066837,0.002,3282.8,3281.5,0.79669528]
[1767735067160,0.91725432,3282.7,3281.6,0.09363588]
[1767735067366,0.00099902,3282.8,3281.8,0.89033116]
[1767735068659,0.00099902,3282.8,3281.9,0.09363588]
[1767735069529,0.00099902,3282.8,3282.0,0.31407346]
[1767735069730,0.91825334,3282.8,3281.4,0.86963588]
[1767735069961,0.91825334,3282.8,3281.4,0.09363588]
[1767735070468,7.00980008,3282.7,3281.6,0.09363588]
[1767735071746,0.91725432,3282.6,3281.6,0.09463588]
[1767735072265,6.09291698,3282.5,3281.6,0.001]
[1767735072436,3.04645849,3282.5,3281.7,0.3048381]
[1767735072631,6.09291698,3282.5,3281.7,0.3048381]
[1767735072966,3.04645849,3282.5,3281.6,0.09463588]
[1767735073134,3.04545751,3282.5,3281.6,0.09463588]
[1767735073335,3.04545751,3282.5,3281.8,0.09363588]
[1767735073535,3.04545751,3282.5,3281.6,0.09463588]
[1767735073735,6.091916,3282.5,3281.6,0.09463588]
[1767735073937,6.091916,3282.5,3281.6,0.41820774]
[1767735074137,3.04545751,3282.5,3281.6,0.41820774]
[1767735074644,3.04545751,3282.5,3281.8,0.09363588]
[1767735074966,3.04445653,3282.5,3281.8,0.09363588]
[1767735075334,3.04445653,3282.5,3281.6,0.41820774]
[1767735075335,0.91725432,3282.4,3281.6,0.32457186]
[1767735075535,1.61807125,3282.4,3281.4,0.09363588]
[1767735075765,0.91725432,3282.4,3281.4,0.09363588]
[1767735075966,0.91725432,3282.4,3281.4,3.14106365]
[1767735076372,3.96389105,3282.4,3281.4,3.14106365]
[1767735076745,3.96389105,3282.4,3281.6,0.09363588]
[1767735077158,0.91725432,3282.4,3281.6,0.09363588]
[1767735077472,0.00099902,3282.8,3281.8,0.09363588]
[1767735077675,0.00099902,3282.8,3282.4,0.09363588]
[1767735077844,0.00099902,3282.8,3282.2,0.09363588]
[1767735078240,3.04718304,3282.8,3282.2,0.09363588]
[1767735078552,0.00099902,3282.8,3282.0,0.09363588]
[1767735078773,0.00099902,3282.8,3282.1,0.31405953]
[1767735080165,3.04553068,3283.5,3282.4,0.09363588]
[1767735080381,0.91725432,3283.5,3282.3,0.09363588]
[1767735080675,0.91725432,3283.3,3282.3,0.09363588]
[1767735081038,0.91725432,3283.3,3282.3,3.14027971]
[1767735081256,0.91725432,3283.3,3282.3,0.09363588]
[1767735081455,0.91725432,3283.3,3282.1,3.14041417]
[1767735081641,0.91725432,3283.3,3282.2,3.04673693]
[1767735081840,0.91725432,3283.3,3282.3,0.31403728]
[1767735082452,0.91725432,3283.3,3282.3,3.36065125]
[1767735082768,3.96305651,3283.3,3282.3,3.45428713]
[1767735085284,3.04556623,3283.5,3282.5,0.09363588]
[1767735085445,3.04556623,3283.5,3282.7,0.09363588]
[1767735086181,0.91725432,3283.4,3282.7,0.09363588]
[1767735087184,0.91725432,3283.3,3282.7,0.09363588]
[1767735087359,0.91725432,3283.3,3282.7,0.32337076]
[1767735087563,0.91725432,3283.3,3282.5,0.09363588]
[1767735087770,0.91725432,3283.3,3282.5,3.14009113]
[1767735087969,0.91725432,3283.3,3282.5,3.14005903]
[1767735088950,0.91725432,3283.3,3282.5,0.09363588]
[1767735089968,0.91625334,3283.2,3282.5,0.09363588]
[1767735090367,3.04575227,3283.3,3282.5,0.09363588]
[1767735090969,3.04565576,3283.4,3282.5,0.09363588]
[1767735091573,3.04565576,3283.4,3282.6,0.31401272]
[1767735091945,3.04565576,3283.4,3282.5,0.09363588]
[1767735092143,0.9373855,3283.3,3282.3,0.09363588]
[1767735092346,6.09131152,3283.4,3282.5,0.09363588]
[1767735092547,0.002,3283.9,3282.5,0.09363588]
[1767735092548,3.98294686,3283.5,3282.5,3.1400879]
[1767735092860,3.98294686,3283.5,3282.6,0.61865655]
[1767735093175,0.9373855,3283.5,3282.7,0.09363588]
[1767735093348,0.9373855,3283.5,3282.9,0.09363588]
[1767735093550,0.9373855,3283.5,3282.7,0.09363588]
[1767735093751,0.9373855,3283.5,3282.8,0.09363588]
[1767735094059,3.04462245,3283.4,3282.6,0.71229243]
[1767735094243,3.04462245,3283.4,3282.7,0.37587445]
[1767735094442,0.9373855,3283.5,3282.7,0.37587445]
[1767735094678,3.98295804,3283.5,3282.8,0.09363588]
[1767735095470,7.02853058,3283.5,3282.7,0.37587445]
[1767735095883,3.98295804,3283.5,3282.7,0.37587445]
[1767735096080,3.84248221,3283.6,3282.8,0.09363588]
[1767735096289,6.88796442,3283.6,3282.8,0.53445588]
[1767735096654,6.88796442,3283.6,3282.6,0.89233903]
[1767735096854,7.82534992,3283.6,3282.6,0.89233903]
[1767735097596,0.9373855,3283.5,3282.6,0.09363588]
[1767735097949,0.9373855,3283.5,3282.8,0.09363588]
[1767735098187,3.98266745,3283.8,3282.8,0.09363588]
[1767735098391,0.797,3283.7,3282.8,3.13981061]
[1767735098585,0.797,3283.7,3282.9,0.39385138]
[1767735098893,0.797,3283.7,3282.6,0.09363588]
[1767735098894,0.9373855,3283.6,3282.6,0.09363588]
[1767735099073,0.9373855,3283.6,3282.5,0.09363588]
[1767735099258,0.9373855,3283.6,3282.4,0.001]
[1767735099965,0.9373855,3283.4,3281.7,3.1408192]
[1767735100385,0.9373855,3283.4,3281.6,0.001]
[1767735100591,12.18212272,3283.5,3281.6,3.04823516]
[1767735100592,0.9373855,3283.2,3281.6,3.04823516]
[1767735100778,0.9373855,3283.0,3281.6,0.001]
[1767735102078,0.9373855,3282.8,3281.6,0.001]
[1767735102680,0.9373855,3282.8,3281.0,0.09363588]
[1767735102966,0.9373855,3282.8,3280.5,3.82429381]
[1767735103168,0.9373855,3282.4,3280.1,0.001]
[1767735103390,0.9373855,3282.2,3280.4,0.09363588]
[1767735103781,0.9373855,3282.2,3280.5,0.03048315]
[1767735103986,0.9373855,3282.0,3280.5,0.03048315]
[1767735104162,0.9373855,3281.8,3280.4,0.09363588]
[1767735104686,0.9373855,3281.8,3280.2,0.09363588]
[1767735105203,0.9373855,3281.8,3280.3,3.04849497]
[1767735105501,0.9373855,3281.8,3280.2,0.09363588]
[1767735105502,0.9373855,3281.6,3280.4,0.09363588]
[1767735105704,0.9373855,3281.6,3280.4,3.14200394]
[1767735105868,0.9373855,3281.4,3280.5,0.31420039]
[1767735106068,3.9849581,3281.3,3280.5,0.31420039]
[1767735106295,0.9373855,3281.2,3280.5,0.31420039]
[1767735106599,0.9373855,3281.2,3280.4,0.09363588]
[1767735106803,0.9373855,3281.2,3280.2,0.09363588]
[1767735106964,0.9373855,3281.2,3280.4,0.09363588]
[1767735107315,0.9373855,3281.2,3280.1,0.09463588]
[1767735107469,0.9373855,3281.1,3280.7,0.001]
[1767735107673,0.9373855,3280.9,3280.1,0.001]
[1767735108088,0.9373855,3280.9,3280.1,3.04967091]
[1767735108496,3.84489499,3281.0,3280.1,0.001]
[1767735108684,0.9373855,3281.5,3280.5,0.09363588]
[1767735108888,1.7343855,3281.5,3280.5,0.09363588]
[1767735109196,0.9373855,3281.3,3280.5,0.09363588]
[1767735109429,0.9373855,3281.3,3280.2,0.30497805]
[1767735109798,0.9373855,3281.3,3280.3,0.09363588]
[1767735109977,0.797,3281.2,3280.3,0.09363588]
[1767735110185,1.7343855,3281.2,3280.2,0.39861393]
[1767735110499,3.98514387,3281.1,3280.2,0.39861393]
[1767735111211,3.98514387,3281.1,3280.2,0.30497805]
[1767735111372,3.98514387,3281.1,3280.2,3.35357001]
[1767735111373,3.04775837,3281.1,3280.2,3.35357001]
[1767735111900,0.79599902,3281.1,3280.5,0.09363588]
[1767735112200,0.9373855,3281.3,3280.3,0.09363588]
[1767735112503,1.72032328,3281.2,3280.3,0.09363588]
[1767735113005,4.768039,3281.2,3280.3,3.14207795]
[1767735113201,3.04771572,3281.2,3280.5,0.09363588]
[1767735115586,3.84461622,3281.3,3280.5,0.09363588]
[1767735115793,0.797,3281.3,3280.5,3.14194416]
[1767735116110,3.84457913,3281.3,3280.5,0.09363588]
[1767735116608,3.04757913,3281.3,3280.5,0.09363588]
[1767735116811,3.04757913,3281.3,3280.3,0.87833903]
[1767735116812,0.70324516,3281.2,3280.3,0.87833903]
[1767735117012,4.78196463,3281.3,3280.3,3.92683203]
[1767735117593,0.9373855,3281.2,3280.3,0.07663588]
[1767735118112,0.9373855,3281.2,3280.1,0.09463588]
[1767735118312,0.797,3281.1,3280.1,0.09463588]
[1767735118519,0.17343855,3281.0,3280.3,0.09363588]
[1767735118809,0.797,3281.0,3280.3,0.09363588]
[1767735119010,0.797,3281.0,3280.5,0.001]
[1767735119190,0.9373855,3281.2,3280.5,0.001]
[1767735119394,0.97426678,3281.0,3280.5,0.001]
[1767735119691,0.17712668,3280.9,3280.5,0.001]
[1767735120413,0.797,3281.0,3280.5,0.001]
[1767735120780,0.97426678,3280.9,3280.5,0.001]
[1767735121012,0.797,3281.0,3280.5,0.001]
[1767735121407,1.77259075,3281.0,3280.5,0.001]
[1767735122004,15.23414885,3282.1,3280.5,0.001]
[1767735122005,0.97559075,3281.3,3280.5,0.001]
[1767735122316,0.797,3281.2,3280.6,0.09363588]
[1767735122698,0.797,3281.2,3280.5,0.001]
[1767735122894,0.97559075,3281.1,3280.5,0.001]
[1767735123200,0.97559075,3280.9,3280.5,0.001]
[1767735124134,3.0454575,3282.5,3280.9,0.09363588]
[1767735124292,0.97559075,3282.3,3280.9,0.09363588]
[1767735124485,0.97559075,3282.3,3280.6,0.09363588]
[1767735124702,0.97559075,3282.3,3280.9,0.01905935]
[1767735124907,0.97559075,3282.1,3280.9,0.01905935]
[1767735126191,0.97559075,3281.9,3280.9,0.01905935]
[1767735126523,0.97559075,3281.9,3280.5,0.001]
[1767735127506,0.97559075,3281.7,3280.1,0.001]
[1767735127710,0.97559075,3281.5,3280.1,3.14331011]
[1767735128127,0.97559075,3281.5,3280.2,3.04859043]
[1767735128331,1.21876904,3281.9,3280.4,0.09363588]
[1767735128332,0.97559075,3281.3,3280.4,0.09363588]
[1767735128500,0.798,3281.2,3280.4,0.09363588]
[1767735128828,1.77359075,3281.1,3280.1,0.001]
[1767735128998,1.15294983,3281.0,3280.1,0.001]
[1767735130115,0.798,3280.9,3280.1,0.001]
[1767735130324,0.97559075,3280.7,3280.1,0.001]
[1767735131737,3.04803706,3280.8,3280.1,0.001]
[1767735131961,0.798,3280.6,3280.1,0.001]
[1767735132406,3.04818985,3280.7,3280.1,0.001]
[1767735132609,0.798,3280.6,3280.1,0.001]
[1767735133213,0.68943709,3280.5,3280.1,0.001]
[1767735133614,4.02366212,3280.8,3280.1,0.001]
[1767735133833,0.798,3280.7,3280.1,0.001]
[1767735134639,3.04822288,3280.6,3280.1,0.001]
[1767735135039,3.84616606,3280.7,3280.1,0.001]
[1767735135238,0.97559075,3281.1,3280.1,0.99344022]
[1767735135438,0.97559075,3281.8,3280.5,0.99244022]
[1767735135747,3.04896088,3282.0,3281.1,1.0860761]
[1767735135947,3.04896088,3282.0,3281.2,0.09363588]
[1767735136148,0.002,3282.0,3281.2,1.0860761]
[1767735136353,0.002,3282.0,3281.4,0.09363588]
[1767735137327,0.002,3282.0,3281.4,0.51636784]
[1767735137859,0.002,3282.0,3281.5,0.99244022]
[1767735138033,0.002,3282.0,3281.6,0.09363588]
[1767735139550,0.97759075,3282.3,3281.4,0.09363588]
[1767735140653,0.002,3282.3,3281.4,1.0860761]
[1767735140956,0.97559075,3282.2,3280.8,4.04041033]
[1767735141157,0.97559075,3282.0,3280.9,0.09363588]
[1767735141654,0.97559075,3282.0,3280.8,4.04045371]
[1767735142065,0.97559075,3282.0,3280.9,3.14155561]
[1767735142359,0.97559075,3282.0,3281.3,0.09363588]
[1767735142745,0.70905077,3282.3,3281.3,0.32350174]
[1767735143048,4.01986541,3282.7,3281.9,0.09363588]
[1767735143565,0.97559075,3282.6,3281.9,0.09363588]
[1767735143949,0.97559075,3282.6,3281.6,0.09363588]
[1767735144273,0.97559075,3282.6,3281.4,1.0860761]
[1767735144649,7.06815187,3282.7,3281.4,0.99244022]
[1767735144844,3.04645849,3282.5,3281.5,0.17694402]
[1767735145042,6.09291698,3282.5,3281.5,0.17694402]
[1767735145732,6.09291698,3282.5,3281.3,0.777]
[1767735145733,0.97559075,3282.3,3281.3,0.777]
[1767735146034,0.97559075,3282.3,3281.1,3.04772195]
[1767735146434,0.97559075,3282.3,3280.9,0.777]
[1767735146656,0.97559075,3282.1,3280.9,0.777]
[1767735146859,0.97559075,3281.9,3280.7,0.99244022]
[1767735147159,0.97559075,3281.8,3280.5,3.82527482]